[Event "Djerba Festival Open-B 2025"]
[Site "Djerba"]
[Date "2025.02.17"]
[Round "2.1"]
[White "Lebret, Jean-Michel"]
[Black "Badrakova, Kseniya"]
[Result "1-0"]
[Annotator "NA"]
[ECO "B25"]
[WhiteElo "1995"]
[BlackElo "1757"]
[PlyCount "63"]
[EventDate "2025.02.15"]
[EventType "swiss"]
[EventCountry "TUN"]
[SourceTitle "playchess.com"]
[Source "ChessBase"]
[SourceQuality "1"]
[TimeControl "5400+30"]

1. e4 {[%emt 0:00:05]} c5 {[%emt 0:00:04]} 2. Nc3 {[%emt 0:00:15]} Nc6 {[%emt 0:00:08]} 3. g3 {[%emt 0:00:36]} d6 {[%emt 0:00:18]} 4. Bg2 {[%emt 0:00:14]} g6 {[%emt 0:00:13]} 5. d3 {[%emt 0:00:16]} Bg7 {[%emt 0:00:14]} 6. f4 {[%emt 0:01:41]} e6 {[%emt 0:03:26]} 7. Nf3 {[%emt 0:00:56]} Nge7 {[%emt 0:00:12]} 8. O-O {[%emt 0:00:18]} O-O {[%emt 0:00:11]} 9. Be3 {[%emt 0:01:05]} Nd4 {[%emt 0:02:09]} 10. Qd2 {[%emt 0:00:49]} Rb8 {[%emt 0:04:42]} 11. Nd1 {[%emt 0:02:32]} b5 {[%emt 0:04:05]} 12. c3 {[%emt 0:01:24]} Nxf3+ {[%emt 0:01:15]} 13. Bxf3 {[%emt 0:00:25]} b4 {[%emt 0:04:57]} 14. d4 {[%emt 0:04:47]} bxc3 {[%emt 0:08:08]} 15. bxc3 {[%emt 0:04:28]} c4 {[%emt 0:05:25]} 16. d5 {[%emt 0:03:52]} exd5 {[%emt 0:06:27]} 17. Bxa7 {[%emt 0:01:19]} Ra8 {[%emt 0:02:28]} 18. Bd4 {[%emt 0:00:54]} dxe4 {[%emt 0:02:20]} 19. Bxg7 {[%emt 0:03:08]} Kxg7 {[%emt 0:00:12]} 20. Bxe4 {[%emt 0:00:29]} d5 {[%emt 0:05:21]} 21. Qd4+ {[%emt 0:01:19]} f6 {[%emt 0:03:26]} 22. Bg2 {[%emt 0:00:48]} Be6 {[%emt 0:03:12]} 23. Ne3 {[%emt 0:06:37]} Bg8 {[%emt 0:07:03]} 24. Rfd1 {[%emt 0:05:42]} Qa5 {[%emt 0:03:21]} 25. Nc2 {[%emt 0:06:37]} Rfd8 {[%emt 0:06:13]} 26. Qd2 {[%emt 0:03:10]} Rab8 {[%emt 0:08:11]} 27. Nd4 {[%emt 0:02:22]} Qa3 {[%emt 0:05:07]} 28. Re1 {[%emt 0:04:27]} Qc5 {[%emt 0:01:50]} 29. Qe3 {[%emt 0:00:48]} Kf7 {[%emt 0:04:12]} 30. Qe6+ {[%emt 0:00:26]} Kf8 {[%emt 0:00:23]} 31. Qxf6+ {[%emt 0:00:16]} Bf7 {[%emt 0:00:23]} 32. Kf1 {[%emt 0:11:40]} 1-0

[Event "Djerba Festival Open-B 2025"]
[Site "Djerba"]
[Date "2025.02.17"]
[Round "2.2"]
[White "Farouz, Pierre"]
[Black "Bensadi, Lotfi"]
[Result "0-1"]
[Annotator "NA"]
[ECO "D00"]
[WhiteElo "1717"]
[BlackElo "1971"]
[PlyCount "58"]
[EventDate "2025.02.15"]
[EventType "swiss"]
[EventCountry "TUN"]
[SourceTitle "playchess.com"]
[Source "ChessBase"]
[SourceQuality "1"]
[TimeControl "5400+30"]

1. d4 {[%emt 0:00:22]} Nf6 {[%emt 0:00:31]} 2. Nc3 {[%emt 0:00:20]} d5 {[%emt 0:01:20]} 3. Bf4 {[%emt 0:00:18]} a6 {[%emt 0:00:09]} 4. e3 {[%emt 0:00:32]} Bf5 {[%emt 0:01:12]} 5. f3 {[%emt 0:01:00]} h6 {[%emt 0:01:17]} 6. g4 {[%emt 0:01:08]} Bh7 {[%emt 0:00:58]} 7. h4 {[%emt 0:02:49]} e6 {[%emt 0:02:36]} 8. Bd3 {[%emt 0:00:55]} Bd6 {[%emt 0:04:16]} 9. Nge2 {[%emt 0:02:24]} c5 {[%emt 0:03:28]} 10. dxc5 {[%emt 0:03:50]} Bxc5 {[%emt 0:00:42]} 11. Bxh7 {[%emt 0:04:44]} Rxh7 {[%emt 0:07:36]} 12. Qd3 {[%emt 0:01:57]} Nc6 {[%emt 0:06:57]} 13. O-O-O {[%emt 0:07:46]} Qa5 {[%emt 0:14:59]} 14. Kb1 {[%emt 0:03:27]} Rh8 {[%emt 0:05:43]} 15. g5 {[%emt 0:15:42]} Nd7 {[%emt 0:06:56]} 16. g6 {[%emt 0:02:25]} f6 {[%emt 0:05:40]} 17. Nd4 {[%emt 0:13:17]} Bxd4 {[%emt 0:08:21]} 18. exd4 {[%emt 0:00:18]} O-O-O {[%emt 0:00:19]} 19. Rhe1 {[%emt 0:05:44]} Rhe8 {[%emt 0:00:25]} 20. a3 {[%emt 0:04:04]} b5 {[%emt 0:11:31]} 21. Bd2 {[%emt 0:03:20]} Qb6 {[%emt 0:00:24]} 22. Ne2 {[%emt 0:02:55]} Kb7 {[%emt 0:02:02]} 23. b4 {[%emt 0:05:35]} e5 {[%emt 0:03:12]} 24. dxe5 {[%emt 0:01:21]} Ndxe5 {[%emt 0:01:25]} 25. Qb3 {[%emt 0:04:12]} Nc4 {[%emt 0:01:45]} 26. Qc3 {[%emt 0:06:37]} Qf2 {[%emt 0:01:25]} 27. Nf4 {[%emt 0:02:24]} Nxd2+ {[%emt 0:00:20]} 28. Qxd2 {[%emt 0:01:20]} Qxd2 {[%emt 0:00:11]} 29. Rxe8 {[%emt 0:00:03]} Qxd1+ {[%emt 0:00:03]} 0-1

[Event "Djerba Festival Open-B 2025"]
[Site "Djerba"]
[Date "2025.02.17"]
[Round "2.3"]
[White "Belhaj, Nadhem"]
[Black "Ben Othman, Zahreddine"]
[Result "1-0"]
[Annotator "NA"]
[ECO "D34"]
[WhiteElo "1960"]
[BlackElo "1718"]
[PlyCount "65"]
[EventDate "2025.02.15"]
[EventType "swiss"]
[EventCountry "TUN"]
[SourceTitle "playchess.com"]
[Source "ChessBase"]
[SourceQuality "1"]
[TimeControl "5400+30"]

1. Nf3 {[%emt 0:00:04]} Nf6 {[%emt 0:00:17]} 2. c4 {[%emt 0:00:07]} c5 {[%emt 0:00:32]} 3. g3 {[%emt 0:00:14]} Nc6 {[%emt 0:00:38]} 4. Bg2 {[%emt 0:00:19]} e6 {[%emt 0:01:02]} 5. O-O {[%emt 0:00:18]} Be7 {[%emt 0:02:15]} 6. Nc3 {[%emt 0:00:30]} O-O {[%emt 0:03:27]} 7. d4 {[%emt 0:00:29]} d5 {[%emt 0:06:29]} 8. cxd5 {[%emt 0:00:54]} exd5 {[%emt 0:01:13]} 9. dxc5 {[%emt 0:02:33]} Bxc5 {[%emt 0:07:24]} 10. Bg5 {[%emt 0:00:41]} d4 {[%emt 0:05:08]} 11. Bxf6 {[%emt 0:03:43]} Qxf6 {[%emt 0:00:58]} 12. Nd5 {[%emt 0:02:47]} Qd8 {[%emt 0:05:00]} 13. Nd2 {[%emt 0:02:33]} Be6 {[%emt 0:05:28]} 14. Nf4 {[%emt 0:01:17]} Rc8 {[%emt 0:08:08]} 15. Nxe6 {[%emt 0:02:51]} fxe6 {[%emt 0:00:21]} 16. Ne4 {[%emt 0:03:15]} Bb6 {[%emt 0:06:13]} 17. Qb3 {[%emt 0:03:44]} Qe7 {[%emt 0:00:21]} 18. Rac1 {[%emt 0:01:47]} Kh8 {[%emt 0:01:31]} 19. h4 {[%emt 0:03:33]} h6 {[%emt 0:05:03]} 20. Bh3 {[%emt 0:04:24]} Rfe8 {[%emt 0:12:11]} 21. Qb5 {[%emt 0:03:11]} Rcd8 {[%emt 0:04:03]} 22. a3 {[%emt 0:10:19]} Rd5 {[%emt 0:01:26]} 23. Qb3 {[%emt 0:02:59]} Ne5 {[%emt 0:04:49]} 24. Bg2 {[%emt 0:06:08]} d3 {[%emt 0:05:48]} 25. Nc3 {[%emt 0:11:08]} dxe2 {[%emt 0:03:37]} 26. Nxe2 {[%emt 0:00:34]} Rd2 {[%emt 0:00:32]} 27. Nf4 {[%emt 0:04:09]} Qf6 {[%emt 0:02:31]} 28. Qc3 {[%emt 0:03:19]} Red8 {[%emt 0:02:12]} 29. Qxe5 {[%emt 0:01:04]} Rxb2 {[%emt 0:04:47]} 30. Qxe6 {[%emt 0:02:36]} Qd4 {[%emt 0:00:48]} 31. Ng6+ {[%emt 0:01:20]} Kh7 {[%emt 0:00:28]} 32. Nf4 {[%emt 0:07:28]} Rxf2 {[%emt 0:00:33]} 33. Qe4+ {[%emt 0:01:25]} 1-0

[Event "Djerba Festival Open-B 2025"]
[Site "Djerba"]
[Date "2025.02.17"]
[Round "2.4"]
[White "Guirat, Saber"]
[Black "Ferrandi, Bernard"]
[Result "1-0"]
[Annotator "NA"]
[ECO "A82"]
[WhiteElo "1956"]
[BlackElo "1716"]
[PlyCount "88"]
[EventDate "2025.02.15"]
[EventType "swiss"]
[EventCountry "TUN"]
[SourceTitle "playchess.com"]
[Source "ChessBase"]
[SourceQuality "1"]
[TimeControl "5400+30"]

1. d4 {[%emt 0:00:03]} f5 {[%emt 0:00:10]} 2. Nc3 {[%emt 0:00:03]} g6 {[%emt 0:00:16]} 3. e4 {[%emt 0:00:12]} fxe4 {[%emt 0:00:38]} 4. Nxe4 {[%emt 0:00:03]} d5 {[%emt 0:01:02]} 5. Ng5 {[%emt 0:00:07]} h6 {[%emt 0:01:30]} 6. N5f3 {[%emt 0:00:43]} Qd6 {[%emt 0:12:26]} 7. Ne5 {[%emt 0:01:10]} Nd7 {[%emt 0:01:55]} 8. Ngf3 {[%emt 0:01:09]} Bg7 {[%emt 0:05:43]} 9. Nd3 {[%emt 0:13:06]} Ngf6 {[%emt 0:11:11]} 10. Bf4 {[%emt 0:00:13]} Qe6+ {[%emt 0:04:52]} 11. Be2 {[%emt 0:01:02]} c6 {[%emt 0:01:12]} 12. O-O {[%emt 0:00:26]} O-O {[%emt 0:03:09]} 13. Re1 {[%emt 0:00:59]} Nh5 {[%emt 0:03:24]} 14. Bd2 {[%emt 0:06:45]} Qf7 {[%emt 0:01:05]} 15. Bf1 {[%emt 0:04:57]} g5 {[%emt 0:07:32]} 16. Qe2 {[%emt 0:06:17]} Re8 {[%emt 0:04:39]} 17. g3 {[%emt 0:10:23]} Bf6 {[%emt 0:02:40]} 18. Bh3 {[%emt 0:00:43]} Ng7 {[%emt 0:00:49]} 19. a4 {[%emt 0:10:47]} Qh5 {[%emt 0:02:35]} 20. Bg2 {[%emt 0:05:48]} Nf8 {[%emt 0:06:52]} 21. Nfe5 {[%emt 0:02:15]} Qxe2 {[%emt 0:01:33]} 22. Rxe2 {[%emt 0:00:01]} Nf5 {[%emt 0:01:51]} 23. c3 {[%emt 0:00:15]} Nd6 {[%emt 0:00:19]} 24. a5 {[%emt 0:00:28]} a6 {[%emt 0:01:55]} 25. Rae1 {[%emt 0:02:56]} Kg7 {[%emt 0:02:37]} 26. Bc1 {[%emt 0:01:52]} Rb8 {[%emt 0:05:25]} 27. Nc5 {[%emt 0:01:21]} Bxe5 {[%emt 0:02:19]} 28. Rxe5 {[%emt 0:00:29]} Kf6 {[%emt 0:02:09]} 29. b3 {[%emt 0:03:16]} b6 {[%emt 0:01:17]} 30. axb6 {[%emt 0:00:38]} Rxb6 {[%emt 0:00:46]} 31. Ba3 {[%emt 0:01:30]} Ng6 {[%emt 0:03:54]} 32. Na4 {[%emt 0:01:40]} Rxb3 {[%emt 0:02:51]} 33. Bxd6 {[%emt 0:00:12]} Nxe5 {[%emt 0:00:19]} 34. Bxe5+ {[%emt 0:03:51]} Kg6 {[%emt 0:00:38]} 35. Ra1 {[%emt 0:02:34]} Bf5 {[%emt 0:01:37]} 36. Bf1 {[%emt 0:00:34]} Reb8 {[%emt 0:01:11]} 37. Bxb8 {[%emt 0:00:15]} Rxb8 {[%emt 0:00:19]} 38. Nc5 {[%emt 0:01:30]} a5 {[%emt 0:00:22]} 39. Rxa5 {[%emt 0:02:23]} Bg4 {[%emt 0:00:16]} 40. Bd3+ {[%emt 0:00:23]} Kf7 {[%emt 0:02:33]} 41. Kg2 {[%emt 0:01:07]} Rc8 {[%emt 0:01:48]} 42. Ra7 {[%emt 0:01:04]} Kf6 {[%emt 0:00:29]} 43. Ba6 {[%emt 0:01:00]} Re8 {[%emt 0:00:23]} 44. Rc7 {[%emt 0:00:20]} e5 {[%emt 0:01:59]} 1-0

[Event "Djerba Festival Open-B 2025"]
[Site "Djerba"]
[Date "2025.02.17"]
[Round "2.5"]
[White "Ktita, Dhafer"]
[Black "Baba, Mouadh"]
[Result "1/2-1/2"]
[Annotator "NA"]
[ECO "C77"]
[WhiteElo "1949"]
[BlackElo "1688"]
[PlyCount "105"]
[EventDate "2025.02.15"]
[EventType "swiss"]
[EventCountry "TUN"]
[SourceTitle "playchess.com"]
[Source "ChessBase"]
[SourceQuality "1"]
[TimeControl "5400+30"]

1. e4 {[%emt 0:00:18]} e5 {[%emt 0:00:07]} 2. Nf3 {[%emt 0:00:14]} Nc6 {[%emt 0:00:07]} 3. Bb5 {[%emt 0:00:09]} a6 {[%emt 0:00:23]} 4. Ba4 {[%emt 0:00:15]} Nf6 {[%emt 0:00:13]} 5. d3 {[%emt 0:00:09]} d6 {[%emt 0:00:32]} 6. c3 {[%emt 0:00:28]} g6 {[%emt 0:00:29]} 7. O-O {[%emt 0:00:43]} Bg7 {[%emt 0:02:44]} 8. Re1 {[%emt 0:01:28]} b5 {[%emt 0:04:04]} 9. Bc2 {[%emt 0:00:09]} O-O {[%emt 0:00:36]} 10. Nbd2 {[%emt 0:00:54]} Bb7 {[%emt 0:01:49]} 11. Nf1 {[%emt 0:03:50]} d5 {[%emt 0:04:20]} 12. a4 {[%emt 0:04:05]} dxe4 {[%emt 0:20:54]} 13. dxe4 {[%emt 0:00:09]} Qe7 {[%emt 0:03:02]} 14. Qe2 {[%emt 0:01:20]} b4 {[%emt 0:02:21]} 15. a5 {[%emt 0:04:15]} bxc3 {[%emt 0:02:48]} 16. bxc3 {[%emt 0:00:14]} Rfb8 {[%emt 0:03:15]} 17. Qc4 {[%emt 0:02:45]} Ne8 {[%emt 0:07:06]} 18. Ba3 {[%emt 0:04:45]} Nd6 {[%emt 0:02:56]} 19. Qa4 {[%emt 0:02:39]} Nd8 {[%emt 0:02:45]} 20. Bxd6 {[%emt 0:04:24]} cxd6 {[%emt 0:00:45]} 21. Rab1 {[%emt 0:04:51]} Bc6 {[%emt 0:03:19]} 22. Qa3 {[%emt 0:01:16]} Qc7 {[%emt 0:01:39]} 23. Rb6 {[%emt 0:09:07]} Bf8 {[%emt 0:02:14]} 24. Qb2 {[%emt 0:02:23]} Rxb6 {[%emt 0:01:32]} 25. axb6 {[%emt 0:00:50]} Qb7 {[%emt 0:00:08]} 26. N3d2 {[%emt 0:01:51]} Bb5 {[%emt 0:06:25]} 27. c4 {[%emt 0:00:20]} Bc6 {[%emt 0:00:19]} 28. Rb1 {[%emt 0:05:38]} Rb8 {[%emt 0:00:34]} 29. Qc3 {[%emt 0:00:45]} Ne6 {[%emt 0:00:50]} 30. Ne3 {[%emt 0:03:54]} Nc5 {[%emt 0:00:54]} 31. Nd5 {[%emt 0:01:39]} Nd7 {[%emt 0:01:00]} 32. Qa5 {[%emt 0:08:26]} Bh6 {[%emt 0:04:48]} 33. Ne7+ {[%emt 0:01:21]} Kg7 {[%emt 0:00:27]} 34. Nxc6 {[%emt 0:00:16]} Qxc6 {[%emt 0:00:06]} 35. Ba4 {[%emt 0:01:04]} Bxd2 {[%emt 0:00:07]} 36. Bxc6 {[%emt 0:00:36]} Bxa5 {[%emt 0:00:06]} 37. Bxd7 {[%emt 0:00:21]} Rxb6 {[%emt 0:00:09]} 38. Rxb6 {[%emt 0:00:46]} Bxb6 {[%emt 0:00:06]} 39. Kf1 {[%emt 0:00:44]} Kf6 {[%emt 0:00:30]} 40. Ke2 {[%emt 0:00:37]} Ke7 {[%emt 0:01:04]} 41. Ba4 {[%emt 0:01:34]} Kd8 {[%emt 0:01:24]} 42. f3 {[%emt 0:00:34]} Bd4 {[%emt 0:00:25]} 43. Kd3 {[%emt 0:05:24]} g5 {[%emt 0:02:05]} 44. h4 {[%emt 0:02:49]} gxh4 {[%emt 0:02:46]} 45. f4 {[%emt 0:01:33]} Ke7 {[%emt 0:01:17]} 46. fxe5 {[%emt 0:00:13]} dxe5 {[%emt 0:00:59]} 47. Ke2 {[%emt 0:03:30]} Kf6 {[%emt 0:02:11]} 48. Kf3 {[%emt 0:00:42]} Kg5 {[%emt 0:01:02]} 49. Be8 {[%emt 0:00:47]} f5 {[%emt 0:03:33]} 50. exf5 {[%emt 0:00:07]} Kxf5 {[%emt 0:00:13]} 51. Bd7+ {[%emt 0:00:12]} Kg5 {[%emt 0:00:06]} 52. Ke4 {[%emt 0:01:54]} Kf6 {[%emt 0:01:01]} 53. Kd5 {[%emt 0:01:01]} 1/2-1/2

[Event "Djerba Festival Open-B 2025"]
[Site "Djerba"]
[Date "2025.02.17"]
[Round "2.6"]
[White "Nassr, Lina"]
[Black "Baba, Jihed"]
[Result "1-0"]
[Annotator "NA"]
[ECO "D05"]
[WhiteElo "1934"]
[BlackElo "1669"]
[PlyCount "42"]
[EventDate "2025.02.15"]
[EventType "swiss"]
[EventCountry "TUN"]
[SourceTitle "playchess.com"]
[Source "ChessBase"]
[SourceQuality "1"]
[TimeControl "5400+30"]

1. d4 {[%emt 1:31:00]} Nf6 {[%emt 1:31:00]} 2. Nf3 {[%emt 0:00:30]} e6 {[%emt 0:00:30]} 3. e3 {[%emt 0:00:30]} b6 {[%emt 0:00:30]} 4. Bd3 {[%emt 0:00:30]} Bb7 {[%emt 0:00:30]} 5. Nbd2 {[%emt 0:00:30]} d5 {[%emt 0:00:30]} 6. Ne5 {[%emt 0:00:30]} Bd6 {[%emt 0:00:30]} 7. f4 {[%emt 0:00:30]} O-O {[%emt 0:00:30]} 8. O-O {[%emt 0:00:30]} c5 {[%emt 0:00:30]} 9. Qf3 {[%emt 0:00:30]} Nc6 {[%emt 0:00:30]} 10. c3 {[%emt 0:00:30]} Ne7 {[%emt 0:00:30]} 11. g4 {[%emt 0:00:30]} g6 {[%emt 0:00:30]} 12. Rf2 {[%emt 0:00:30]} Qc7 {[%emt 0:00:30]} 13. g5 {[%emt 0:00:30]} Nh5 {[%emt 0:00:30]} 14. Qh3 {[%emt 0:00:30]} Nf5 {[%emt 0:00:30]} 15. Ng4 {[%emt 0:00:30]} Kg7 {[%emt 0:00:30]} 16. Nf3 {[%emt 0:00:30]} a6 {[%emt 0:00:30]} 17. Bxf5 {[%emt 0:00:30]} exf5 {[%emt 0:00:30]} 18. Nf6 {[%emt 0:00:30]} Nxf6 {[%emt 0:00:30]} 19. Qh6+ {[%emt 0:00:30]} Kh8 {[%emt 0:00:30]} 20. gxf6 {[%emt 0:00:30]} Rg8 {[%emt 0:00:30]} 21. Ng5 {[%emt 0:00:30]} Rge8 {[%emt 0:00:30]} 1-0

[Event "Djerba Festival Open-B 2025"]
[Site "Djerba"]
[Date "2025.02.17"]
[Round "2.7"]
[White "Mileiko, Juris"]
[Black "Dejardin, Gregoire"]
[Result "0-1"]
[Annotator "NA"]
[ECO "B11"]
[WhiteElo "1716"]
[BlackElo "1932"]
[PlyCount "59"]
[EventDate "2025.02.15"]
[EventType "swiss"]
[EventCountry "TUN"]
[SourceTitle "playchess.com"]
[Source "ChessBase"]
[SourceQuality "1"]
[TimeControl "5400+30"]

1. e4 {[%emt 0:00:01]} c6 {[%emt 0:00:05]} 2. Nf3 {[%emt 0:00:05]} d5 {[%emt 0:00:10]} 3. Nc3 {[%emt 0:00:08]} Bg4 {[%emt 0:00:54]} 4. h3 {[%emt 0:00:11]} Bxf3 {[%emt 0:00:09]} 5. Qxf3 {[%emt 0:00:09]} e6 {[%emt 0:00:51]} 6. exd5 {[%emt 0:02:13]} cxd5 {[%emt 0:00:32]} 7. Bb5+ {[%emt 0:01:50]} Nc6 {[%emt 0:00:31]} 8. O-O {[%emt 0:00:48]} Nf6 {[%emt 0:00:44]} 9. d4 {[%emt 0:02:15]} Be7 {[%emt 0:01:00]} 10. Qg3 {[%emt 0:14:17]} O-O {[%emt 0:14:30]} 11. Bxc6 {[%emt 0:05:59]} bxc6 {[%emt 0:00:19]} 12. Bh6 {[%emt 0:00:59]} Ne8 {[%emt 0:00:31]} 13. Ne2 {[%emt 0:08:21]} Bh4 {[%emt 0:01:20]} 14. Qg4 {[%emt 0:06:12]} f5 {[%emt 0:00:47]} 15. Qh5 {[%emt 0:00:32]} gxh6 {[%emt 0:00:35]} 16. Qxh6 {[%emt 0:01:08]} Ng7 {[%emt 0:03:37]} 17. Qf4 {[%emt 0:02:35]} Bg5 {[%emt 0:01:55]} 18. Qg3 {[%emt 0:05:16]} f4 {[%emt 0:03:34]} 19. Qg4 {[%emt 0:02:09]} Qf6 {[%emt 0:01:47]} 20. h4 {[%emt 0:10:31]} Bxh4 {[%emt 0:05:41]} 21. g3 {[%emt 0:05:04]} Bg5 {[%emt 0:01:10]} 22. gxf4 {[%emt 0:02:48]} Bxf4 {[%emt 0:00:34]} 23. Kg2 {[%emt 0:01:49]} Qf5 {[%emt 0:06:34]} 24. Qxf5 {[%emt 0:07:29]} Rxf5 {[%emt 0:00:46]} 25. Rh1 {[%emt 0:01:17]} Raf8 {[%emt 0:01:49]} 26. f3 {[%emt 0:02:03]} Be3 {[%emt 0:01:15]} 27. Rh3 {[%emt 0:00:26]} Rg5+ {[%emt 0:02:07]} 28. Kf1 {[%emt 0:04:02]} Rh5 {[%emt 0:01:15]} 29. Rxh5 {[%emt 0:04:31]} Rxf3+ {[%emt 0:02:16]} 30. Ke1 {[%emt 0:10:22]} 0-1

[Event "Djerba Festival Open-B 2025"]
[Site "Djerba"]
[Date "2025.02.17"]
[Round "2.8"]
[White "Gely, Bernard"]
[Black "Guinet, Andy"]
[Result "1-0"]
[Annotator "NA"]
[ECO "B06"]
[WhiteElo "1928"]
[BlackElo "1665"]
[PlyCount "63"]
[EventDate "2025.02.15"]
[EventType "swiss"]
[EventCountry "TUN"]
[SourceTitle "playchess.com"]
[Source "ChessBase"]
[SourceQuality "1"]
[TimeControl "5400+30"]

1. d4 {[%emt 0:00:04]} g6 {[%emt 0:00:17]} 2. e4 {[%emt 0:00:18]} Bg7 {[%emt 0:00:14]} 3. Bc4 {[%emt 0:00:35]} d6 {[%emt 0:01:42]} 4. Ne2 {[%emt 0:00:10]} f5 {[%emt 0:01:54]} 5. exf5 {[%emt 0:02:29]} Bxf5 {[%emt 0:00:14]} 6. O-O {[%emt 0:00:15]} Nc6 {[%emt 0:04:15]} 7. c3 {[%emt 0:00:25]} Qd7 {[%emt 0:04:02]} 8. a4 {[%emt 0:01:34]} a5 {[%emt 0:05:25]} 9. Ng3 {[%emt 0:01:36]} Nf6 {[%emt 0:09:42]} 10. Nd2 {[%emt 0:00:42]} Be6 {[%emt 0:02:07]} 11. Bb5 {[%emt 0:00:43]} O-O {[%emt 0:00:57]} 12. Nde4 {[%emt 0:00:29]} d5 {[%emt 0:01:01]} 13. Nc5 {[%emt 0:01:06]} Qc8 {[%emt 0:03:52]} 14. Re1 {[%emt 0:00:41]} Nd8 {[%emt 0:02:43]} 15. Nxe6 {[%emt 0:06:56]} Nxe6 {[%emt 0:00:26]} 16. Qe2 {[%emt 0:00:44]} Kf7 {[%emt 0:09:42]} 17. f4 {[%emt 0:04:29]} c6 {[%emt 0:02:02]} 18. Bd3 {[%emt 0:00:19]} Re8 {[%emt 0:00:04]} 19. f5 {[%emt 0:00:59]} Nf8 {[%emt 0:00:05]} 20. Bf4 {[%emt 0:02:52]} e6 {[%emt 0:01:51]} 21. fxg6+ {[%emt 0:00:33]} hxg6 {[%emt 0:00:13]} 22. Rf1 {[%emt 0:01:01]} Kg8 {[%emt 0:07:26]} 23. Bd6 {[%emt 0:01:49]} N6h7 {[%emt 0:04:04]} 24. Qc2 {[%emt 0:01:34]} Qd7 {[%emt 0:01:41]} 25. Bxf8 {[%emt 1:10:37]} Nxf8 {[%emt 0:37:01]} 26. Bxg6 {[%emt 0:00:00]} Nxg6 {[%emt 0:00:00]} 27. Qxg6 {[%emt 0:00:00]} Rf8 {[%emt 0:00:00]} 28. Nh5 {[%emt 0:00:00]} Qe7 {[%emt 0:00:00]} 29. Nxg7 {[%emt 0:00:00]} Qxg7 {[%emt 0:00:00]} 30. Qxe6+ {[%emt 0:00:00]} Kh8 {[%emt 0:00:00]} 31. Qh3+ {[%emt 0:00:00]} Kg8 {[%emt 0:00:00]} 32. Rae1 {[%emt 0:03:30]} 1-0

[Event "Djerba Festival Open-B 2025"]
[Site "Djerba"]
[Date "2025.02.17"]
[Round "2.9"]
[White "Dubourg, Bruno"]
[Black "Zouaghi, Ahmed"]
[Result "0-1"]
[Annotator "RC"]
[ECO "B20"]
[WhiteElo "1661"]
[BlackElo "1919"]
[PlyCount "164"]
[EventDate "2025.02.15"]
[EventType "swiss"]
[EventCountry "TUN"]
[SourceTitle "playchess.com"]
[Source "ChessBase"]
[SourceQuality "1"]
[TimeControl "5400+30"]

1. e4 {[%emt 1:31:00]} c5 {[%emt 1:31:00]} 2. a3 {[%emt 0:00:30]} Nc6 {[%emt 0:00:30]} 3. b4 {[%emt 0:00:30]} cxb4 {[%emt 0:00:30]} 4. axb4 {[%emt 0:00:30]} Nxb4 {[%emt 0:00:30]} 5. c3 {[%emt 0:00:30]} Nc6 {[%emt 0:00:30]} 6. d4 {[%emt 0:00:30]} d6 {[%emt 0:00:30]} 7. d5 {[%emt 0:00:30]} Nb8 {[%emt 0:00:30]} 8. Bb5+ {[%emt 0:00:30]} Bd7 {[%emt 0:00:30]} 9. Bc4 {[%emt 0:00:30]} Nf6 {[%emt 0:00:30]} 10. Qe2 {[%emt 0:00:30]} g6 {[%emt 0:00:30]} 11. Nf3 {[%emt 0:00:30]} Bg4 {[%emt 0:00:30]} 12. h3 {[%emt 0:00:30]} Bxf3 {[%emt 0:00:30]} 13. Qxf3 {[%emt 0:00:30]} Bg7 {[%emt 0:00:30]} 14. O-O {[%emt 0:00:30]} O-O {[%emt 0:00:30]} 15. Be3 {[%emt 0:00:30]} Nbd7 {[%emt 0:00:30]} 16. Bd4 {[%emt 0:00:30]} a6 {[%emt 0:00:30]} 17. Nd2 {[%emt 0:00:30]} Qc7 {[%emt 0:00:30]} 18. Bd3 {[%emt 0:00:30]} Nc5 {[%emt 0:00:30]} 19. Rfe1 {[%emt 0:00:30]} Nfd7 {[%emt 0:00:30]} 20. Bxg7 {[%emt 0:00:30]} Kxg7 {[%emt 0:00:30]} 21. Qe3 {[%emt 0:00:30]} Rfc8 {[%emt 0:00:30]} 22. Be2 {[%emt 0:00:30]} b5 {[%emt 0:00:30]} 23. f4 {[%emt 0:00:30]} Qb6 {[%emt 0:00:30]} 24. Bg4 {[%emt 0:00:30]} h5 {[%emt 0:00:30]} 25. Be2 {[%emt 0:00:30]} Na4 {[%emt 0:00:30]} 26. Qd4+ {[%emt 0:00:30]} Kg8 {[%emt 0:00:30]} 27. Kf1 {[%emt 0:00:30]} Nxc3 {[%emt 0:00:30]} 28. Nb3 {[%emt 0:00:30]} Qxd4 {[%emt 0:00:30]} 29. Nxd4 {[%emt 0:00:30]} Nxe4 {[%emt 0:00:30]} 30. Nc6 {[%emt 0:00:30]} Kf8 {[%emt 0:00:30]} 31. Bxb5 {[%emt 0:00:30]} axb5 {[%emt 0:00:30]} 32. Rxa8 {[%emt 0:00:30]} Rxa8 {[%emt 0:00:30]} 33. Rxe4 {[%emt 0:00:30]} Nf6 {[%emt 0:00:30]} 34. Rxe7 {[%emt 0:00:30]} Nxd5 {[%emt 0:00:30]} 35. Rb7 {[%emt 0:00:30]} Nxf4 {[%emt 0:00:30]} 36. Rxb5 {[%emt 0:00:30]} Ra1+ {[%emt 0:00:30]} 37. Kf2 {[%emt 0:00:30]} Ra2+ {[%emt 0:00:30]} 38. Kf3 {[%emt 0:00:30]} Nxg2 {[%emt 0:00:30]} 39. Rb8+ {[%emt 0:00:30]} Kg7 {[%emt 0:00:30]} 40. Rd8 {[%emt 0:00:30]} Nh4+ {[%emt 0:00:30]} 41. Kf4 {[%emt 0:00:30]} Ra4+ {[%emt 0:00:30]} 42. Kg3 {[%emt 0:00:30]} Nf5+ {[%emt 0:00:30]} 43. Kf2 {[%emt 0:00:30]} Ra2+ {[%emt 0:00:30]} 44. Kf3 {[%emt 0:00:30]} Ra3+ {[%emt 0:00:30]} 45. Kg2 {[%emt 0:00:30]} Rc3 {[%emt 0:00:30]} 46. Nb4 {[%emt 0:00:30]} h4 {[%emt 0:00:30]} 47. Re8 {[%emt 0:00:30]} Re3 {[%emt 0:00:30]} 48. Rc8 {[%emt 0:00:30]} Rg3+ {[%emt 0:00:30]} 49. Kh2 {[%emt 0:00:30]} Rb3 {[%emt 0:00:30]} 50. Nd5 {[%emt 0:00:30]} Rb2+ {[%emt 0:00:30]} 51. Kg1 {[%emt 0:00:30]} Rd2 {[%emt 0:00:30]} 52. Nf4 {[%emt 0:00:30]} d5 {[%emt 0:00:30]} 53. Rd8 {[%emt 0:00:30]} d4 {[%emt 0:00:30]} 54. Kf1 {[%emt 0:00:30]} Kf6 {[%emt 0:00:30]} 55. Ke1 {[%emt 0:00:30]} Ra2 {[%emt 0:00:30]} 56. Nd3 {[%emt 0:00:30]} Ra3 {[%emt 0:00:30]} 57. Kd2 {[%emt 0:00:30]} Ra2+ {[%emt 0:00:30]} 58. Kc1 {[%emt 0:00:30]} Rh2 {[%emt 0:00:30]} 59. Nc5 {[%emt 0:00:30]} Rxh3 {[%emt 0:00:30]} 60. Ne4+ {[%emt 0:00:30]} Ke5 {[%emt 0:00:30]} 61. Ng5 {[%emt 0:00:30]} Rc3+ {[%emt 0:00:30]} 62. Kd2 {[%emt 0:00:30]} Nd6 {[%emt 0:00:30]} 63. Ra8 {[%emt 0:00:30]} Ne4+ {[%emt 0:00:30]} 64. Nxe4 {[%emt 0:00:30]} Kxe4 {[%emt 0:00:30]} 65. Re8+ {[%emt 0:00:30]} Kf5 {[%emt 0:00:30]} 66. Rd8 {[%emt 0:00:30]} Ke4 {[%emt 0:00:30]} 67. Re8+ {[%emt 0:00:30]} Kf3 {[%emt 0:00:30]} 68. Rd8 {[%emt 0:00:30]} Rc4 {[%emt 0:00:30]} 69. Kd3 {[%emt 0:00:30]} Ra4 {[%emt 0:00:30]} 70. Rf8 g5 {[%emt 0:00:30]} 71. Rxf7+ {[%emt 0:01:00]} Kg3 {[%emt 0:00:30]} 72. Ke4 {[%emt 0:00:30]} g4 {[%emt 0:00:30]} 73. Rb7 {[%emt 0:00:30]} h3 {[%emt 0:00:30]} 74. Kf5 {[%emt 0:00:30]} Ra5+ {[%emt 0:00:30]} 75. Ke4 {[%emt 0:00:30]} h2 {[%emt 0:00:30]} 76. Rb3+ {[%emt 0:00:30]} Kg2 {[%emt 0:00:30]} 77. Rb2+ {[%emt 0:00:30]} Kh3 {[%emt 0:00:30]} 78. Rb3+ {[%emt 0:00:30]} g3 {[%emt 0:00:30]} 79. Rb1 {[%emt 0:00:30]} g2 {[%emt 0:00:30]} 80. Rb3+ {[%emt 0:00:30]} Kh4 {[%emt 0:00:30]} 81. Kf4 {[%emt 0:00:30]} g1=Q {[%emt 0:00:30]} 82. Rb8 {[%emt 0:00:30]} Qg4# {[%emt 0:00:30]} 0-1